[Event "10th Iberoamericano-ch 2024"]
[Site "Linares"]
[Date "2024.09.26"]
[Round "3.9"]
[White "Sos Andreu, Eric"]
[Black "Quesada Perez, Luis Ernesto"]
[Result "0-1"]
[ECO "D12"]
[WhiteElo "2359"]
[BlackElo "2578"]
[Annotator "TA"]
[PlyCount "66"]
[EventDate "2024.09.25"]
[EventType "swiss"]
[EventCountry "ESP"]
[SourceTitle "playchess.com"]
[Source "ChessBase"]
[SourceQuality "1"]
[TimeControl "5400+30"]

{[%evp 12,66,25,22,25,16,14,24,27,29,29,-12,5,-1,-17,-24,8,0,0,-23,-4,-18,-2,-14,-20,-85,-91,-85,-40,-83,-85,-97,-100,-104,-81,-161,-152,-207,-91,-218,-129,-229,-211,-253,-240,-434,-462,-446,-249,-958,-941,-851,-795,-6511,-6802,-29991,-2593]} 1. d4 {[%emt 0:01:54]} d5 {[%emt 0:00:34]} 2. c4 {[%emt 0:00:24]} c6 {[%emt 0:00:04]} 3. Nf3 {[%emt 0:00:37]} Nf6 {[%emt 0:00:08]} 4. e3 {[%emt 0:00:50]} Bf5 {[%emt 0:00:26]} 5. Nc3 {[%emt 0:00:29]} e6 {[%emt 0:00:09]} 6. Nh4 {[%emt 0:00:21]} Be4 {[%emt 0:00:26]} 7. f3 {[%emt 0:00:29]} Bg6 {[%emt 0:00:08]} 8. Nxg6 {[%emt 0:00:49]} hxg6 {[%emt 0:00:08]} 9. Qb3 {[%emt 0:00:10]} Qc7 {[%emt 0:00:07] White has an edge.} 10. Bd2 {[%emt 0:02:09]} dxc4 {[%emt 0:04:37]} 11. Qxc4 {[%emt 0:02:04]} a6 {[%emt 0:03:24]} 12. e4 {[%emt 0:05:42]} b5 {[%emt 0:00:10]} 13. Qe2 {[%emt 0:01:13]} Be7 {[%emt 0:12:04][%cal Of6h5]} 14. g3 {[%emt 0:06:46]} c5 {[%emt 0:02:36]} 15. dxc5 {[%emt 0:04:08]} Nc6 {[%emt 0:00:13]} (15... Qxc5 $6 16. Rc1 Qa7 17. e5 $16) (15... Bxc5 16. e5 Nfd7 17. Rc1 $14) 16. Be3 {[%emt 0:00:44] Inhibits Nd4.} Rd8 {[%emt 0:00:51]} 17. Rd1 {[%emt 0:02:17]} O-O {[%emt 0:03:15]} 18. Bg2 {[%emt 0:04:55] [#]} (18. a3 $11 {remains equal.}) 18... Rxd1+ $1 $17 {[%emt 0:01:59]} 19. Qxd1 {[%emt 0:10:57]} Qa7 {[%emt 0:17:56]} 20. O-O {[%emt 0:08:05]} Bxc5 {[%emt 0:00:57]} 21. Bxc5 {[%emt 0:00:09]} Qxc5+ {[%emt 0:00:05]} 22. Kh1 {[%emt 0:00:04]} Rd8 {[%emt 0:00:06] Black has more active pieces.} 23. Qc1 {[%emt 0:01:43]} (23. Qe2 $17 {was called for.}) 23... Ne5 $36 {[%emt 0:07:34][%mdl 2048] Black is in control.} 24. Qg5 {[%emt 0:09:13]} (24. Nb1 $17 Qxc1 25. Rxc1) 24... b4 {[%emt 0:04:27]} (24... Rd3 $19 25. Ne2 Rd7) 25. Nd1 {[%emt 0:05:17] [#] This move loses the game for White.} (25. Nd5 $17) 25... Qd4 {[%emt 0:01:41]} ({Black should try} 25... Qc2 $1 $19 {[%cal Od8d2] And now ...Rd2! would win.} 26. Ne3 Qxb2) 26. h3 {[%emt 0:07:03]} (26. b3 $17 {keeps fighting.}) 26... a5 {[%emt 0:18:15]} 27. Kh2 {[%emt 0:02:56]} a4 {[%emt 0:00:49]} 28. f4 $2 {[%emt 0:01:36]} (28. b3) 28... Nc4 {[%emt 0:04:48]} (28... Nxe4 29. Qxe5 Qxe5 30. fxe5 $16) 29. e5 {[%emt 0:00:30]} Ne4 {[%emt 0:00:09]} ({Less strong is} 29... Nxb2 30. Nxb2 Qxb2 31. exf6 $17) 30. Bxe4 {[%emt 0:01:01]} (30. Qe7) 30... Nd2 {[%emt 0:00:30]} 31. Rg1 {[%emt 0:10:38]} Nxe4 {[%emt 0:00:10]} 32. Qh4 {[%emt 0:00:39] White is weak on the light squares} Qd2+ {[%emt 0:04:03]} 33. Kh1 {[%emt 0:00:36]} Rd3 {[%emt 0:00:30] Weighted Error Value: White=0.95/Black=0.13 (very precise) .  Mistake:       	White=7     	Black=2      Inaccurate:     	White=2     	Black=2      OK:         	White=5     	Black=10     Best:        	White=1     	Black=2      Strong:       	---       	Black=1} (33... Rc8 $142 34. Ne3 Qxe3 35. Kh2 Rc2+ 36. Rg2 Rxg2+ 37. Kxg2 Qf2+ 38. Kh1 Nxg3+ 39. Qxg3 Qxg3 40. h4 Kh7 (40... Qxh4+ {leads to mate.} 41. Kg1 Qg3+ 42. Kh1 Kh7 43. b3 Kh6 44. f5 gxf5 45. bxa4 f4 46. a5 f3 47. a6 Qg2#) 41. b3 a3 (41... Qxf4 {is a self mate.} 42. bxa4 Qd2 43. a5 Qxa2 44. h5 b3 45. h6 b2 46. Kg2 b1=Q+ 47. Kg3 Qe4 48. hxg7 Qag2#) 42. f5 gxf5 43. h5 f4 (43... Qxe5 44. Kg2 Qe2+ 45. Kg3 Kh6 46. Kf4 Qf2+ 47. Ke5 Qg3+ 48. Kd4 Qc3#) 44. h6 f3 45. hxg7 Qg2#) 0-1

[Event "10th Iberoamericano-ch 2024"]
[Site "Linares"]
[Date "2024.09.26"]
[Round "3.10"]
[White "Iturrizaga Bonelli, Eduardo"]
[Black "Marin Ferragut, Pau"]
[Result "1-0"]
[ECO "A13"]
[WhiteElo "2577"]
[BlackElo "2348"]
[Annotator "RC"]
[PlyCount "119"]
[EventDate "2024.09.25"]
[EventType "swiss"]
[EventCountry "ESP"]
[SourceTitle "playchess.com"]
[Source "ChessBase"]
[SourceQuality "1"]
[TimeControl "5400+30"]

1. Nf3 {[%emt 0:09:43]} d5 {[%emt 0:00:31]} 2. c4 {[%emt 0:00:30]} e6 {[%emt 0:00:15]} 3. e3 {[%emt 0:01:02]} Nf6 {[%emt 0:00:43]} 4. b3 {[%emt 0:00:41]} b6 {[%emt 0:00:28]} 5. Bb2 {[%emt 0:00:10]} Bb7 {[%emt 0:00:27]} 6. Be2 {[%emt 0:03:27]} Nbd7 {[%emt 0:00:31]} 7. O-O {[%emt 0:00:08]} Bd6 {[%emt 0:00:31]} 8. d4 {[%emt 0:02:15]} O-O {[%emt 0:00:56]} 9. Nc3 {[%emt 0:00:05]} a6 {[%emt 0:00:04]} 10. cxd5 {[%emt 0:00:32]} exd5 {[%emt 0:00:19]} 11. Re1 {[%emt 0:02:56]} Qe7 {[%emt 0:07:18]} 12. Rc1 {[%emt 0:02:09]} Rae8 {[%emt 0:03:00]} 13. Nd2 {[%emt 0:10:21]} b5 {[%emt 0:04:25]} 14. a4 {[%emt 0:08:29]} b4 {[%emt 0:03:22]} 15. Ncb1 {[%emt 0:01:38]} Qe6 {[%emt 0:07:43]} 16. Nf1 {[%emt 0:10:54]} Rc8 {[%emt 0:15:03]} 17. Nbd2 {[%emt 0:03:27]} Rfe8 {[%emt 0:00:33]} 18. Ng3 {[%emt 0:11:33]} g6 {[%emt 0:08:50]} 19. Bd3 {[%emt 0:05:26]} h5 {[%emt 0:02:59]} 20. f4 {[%emt 0:17:24]} h4 {[%emt 0:05:04]} 21. Ngf1 {[%emt 0:00:46]} h3 {[%emt 0:11:06]} 22. g3 {[%emt 0:00:36]} Ne4 {[%emt 0:00:37]} 23. Nxe4 {[%emt 0:00:40]} dxe4 {[%emt 0:00:15]} 24. Bc4 {[%emt 0:00:04]} Bd5 {[%emt 0:01:45]} 25. Bxa6 {[%emt 0:00:15]} Rcd8 {[%emt 0:03:14]} 26. Bc4 {[%emt 0:01:46]} Nf6 {[%emt 0:02:22]} 27. Nd2 {[%emt 0:00:17]} Bf8 {[%emt 0:00:53]} 28. Bf1 {[%emt 0:00:53]} c6 {[%emt 0:03:36]} 29. Nc4 {[%emt 0:00:22]} Rb8 {[%emt 0:03:16]} 30. Qd2 {[%emt 0:00:38]} Nd7 {[%emt 0:00:37]} 31. Ra1 {[%emt 0:00:39]} Ra8 {[%emt 0:01:11]} 32. Rec1 {[%emt 0:00:05]} Reb8 {[%emt 0:00:05]} 33. Rc2 {[%emt 0:00:49]} Be7 {[%emt 0:00:22]} 34. Rac1 {[%emt 0:00:12]} Rc8 {[%emt 0:01:14]} 35. Qf2 {[%emt 0:02:04]} Qf5 {[%emt 0:02:37]} 36. Qe2 {[%emt 0:01:56]} Be6 {[%emt 0:01:04]} 37. Qd1 {[%emt 0:00:40]} Nf6 {[%emt 0:00:36]} 38. Qe1 {[%emt 0:00:39]} Rcb8 {[%emt 0:01:12]} 39. Qe2 {[%emt 0:01:15]} Rb7 {[%emt 0:01:03]} 40. Ne5 {[%emt 0:01:41]} Bxb3 {[%emt 0:00:46]} 41. Rxc6 {[%emt 0:00:41]} Qh5 {[%emt 0:01:31]} 42. Qxh5 {[%emt 0:00:05]} gxh5 {[%emt 0:01:18]} 43. Rc8+ {[%emt 0:00:11]} Rxc8 {[%emt 0:00:42]} 44. Rxc8+ {[%emt 0:00:04]} Kh7 {[%emt 0:00:14]} 45. a5 {[%emt 0:01:18]} Bd5 {[%emt 0:00:07]} 46. a6 {[%emt 0:01:12]} Ra7 {[%emt 0:00:02]} 47. Nc6 {[%emt 0:00:28]} Bxc6 {[%emt 0:00:03]} 48. Rxc6 {[%emt 0:00:05]} Nd5 {[%emt 0:01:19]} 49. Kf2 {[%emt 0:00:13]} b3 {[%emt 0:01:41]} 50. Rc8 {[%emt 0:01:33]} Nc7 {[%emt 0:02:35]} 51. d5 {[%emt 0:00:28]} Nxd5 {[%emt 0:01:38]} 52. Bd4 {[%emt 0:00:32]} Rc7 {[%emt 0:00:44]} 53. Bxh3 {[%emt 0:00:29]} Rc2+ {[%emt 0:01:09]} 54. Rxc2 {[%emt 0:00:28]} bxc2 {[%emt 0:00:01]} 55. a7 {[%emt 0:00:25]} c1=Q {[%emt 0:01:27]} 56. a8=Q {[%emt 0:00:21]} Qc2+ {[%emt 0:00:37]} 57. Kg1 {[%emt 0:00:05]} Qb1+ {[%emt 0:00:05]} 58. Bf1 {[%emt 0:00:11]} Nf6 {[%emt 0:00:14]} 59. Qa5 {[%emt 0:00:21]} Qd1 {[%emt 0:01:18]} 60. Qf5+ {[%emt 0:00:11]} 1-0

[Event "10th Iberoamericano-ch 2024"]
[Site "Linares"]
[Date "2024.09.26"]
[Round "3.11"]
[White "Avila Pavas, Santiago"]
[Black "Ticona Rocabado, Licael Roderick"]
[Result "1-0"]
[ECO "A40"]
[WhiteElo "2485"]
[BlackElo "2321"]
[Annotator "TA"]
[PlyCount "125"]
[EventDate "2024.09.25"]
[EventType "swiss"]
[EventCountry "ESP"]
[SourceTitle "playchess.com"]
[Source "ChessBase"]
[SourceQuality "1"]
[TimeControl "5400+30"]

{[%evp 31,125,46,49,0,0,0,0,0,0,0,0,0,42,48,49,54,57,60,97,79,231,267,297,108,133,128,131,112,113,118,124,126,123,88,158,146,172,172,155,114,112,93,83,94,95,49,49,55,56,48,47,4,47,47,119,50,78,80,131,132,234,223,236,206,537,468,212,215,510,506,792,592,1379,1252,1147,1139,1133,1132,29956,29958,29955,29955,29966,29967,29978,29979,29979,29980,29984,29985,29987,29988,29988,29987,29987,29988]} 1. d4 {[%emt 0:00:34]} e6 {[%emt 0:05:30]} 2. Nf3 {[%emt 0:00:35]} c5 {[%emt 0:00:07]} 3. g3 {[%emt 0:00:55]} Nf6 {[%emt 0:01:38]} 4. Bg2 {[%emt 0:00:09]} Nc6 {[%emt 0:00:08]} 5. O-O {[%emt 0:01:38]} d5 {[%emt 0:01:43]} 6. c4 {[%emt 0:10:01]} cxd4 {[%emt 0:05:00]} 7. Nxd4 {[%emt 0:00:46]} Bc5 {[%emt 0:04:22]} 8. Nb3 {[%emt 0:06:52]} Be7 {[%emt 0:02:44]} 9. cxd5 {[%emt 0:08:02]} exd5 {[%emt 0:02:31]} 10. Nc3 {[%emt 0:00:51]} Be6 {[%emt 0:00:24]} 11. Bf4 {[%emt 0:07:34]} O-O {[%emt 0:01:11]} 12. Qd3 {[%emt 0:00:27]} Qd7 {[%emt 0:01:53]} 13. Rfd1 {[%emt 0:00:54]} Rfd8 {[%emt 0:00:27]} 14. Rac1 {[%emt 0:08:17]} Rac8 {[%emt 0:03:24]} 15. Qb5 {[%emt 0:01:15]} d4 {[%emt 0:14:14]} 16. Qa4 {[%emt 0:17:31]} Bxb3 {[%emt 0:26:35]} 17. axb3 {[%emt 0:10:58]} (17. Qxb3 $14 h6 18. h4) 17... Qe6 $11 {[%emt 0:07:54]} 18. Nb5 {[%emt 0:00:07]} Nd5 {[%emt 0:01:30]} 19. Bxd5 {[%emt 0:09:07]} Qxd5 {[%emt 0:00:13]} 20. Nxa7 {[%emt 0:00:31]} Nxa7 {[%emt 0:01:25]} 21. Qxa7 {[%emt 0:00:02]} g5 {[%emt 0:02:35]} 22. Rxc8 {[%emt 0:06:53]} Rxc8 {[%emt 0:00:06]} 23. Be3 $1 {[%emt 0:00:06]} (23. Qxd4 $2 Qxd4 (23... Qxb3 24. Rc1 $16) 24. Rxd4 gxf4 $19) (23. Rxd4 Qc6 24. Be3 Bc5 $15) 23... Bc5 {[%emt 0:13:59]} 24. Qa4 {[%emt 0:00:05]} Qe6 {[%emt 0:01:24]} 25. Bxd4 {[%emt 0:00:20]} Qxe2 $2 {[%emt 0:00:07]} (25... Bxd4 $16 26. Rxd4 (26. Qxd4 Qxe2 27. Qd5 h6 $14) 26... Qxe2) 26. Rc1 $18 {[%emt 0:00:22]} b6 {[%emt 0:00:44]} 27. Qd7 $2 {[%emt 0:02:10]} (27. b4 $1 $18 {[%cal Rb4c5]} Qd2 28. Rd1 (28. bxc5 Qxc1+ 29. Kg2 bxc5 $11) (28. Be3 Qxe3 29. fxe3 Bxe3+ 30. Kg2 Bxc1 $18) 28... Qxb4 29. Qd7) 27... Re8 $16 {[%emt 0:00:01]} 28. Bxc5 {[%emt 0:01:35]} bxc5 {[%emt 0:00:01]} 29. Rxc5 {[%emt 0:01:02]} Qe1+ {[%emt 0:01:00]} 30. Kg2 {[%emt 0:00:01]} Qe4+ {[%emt 0:00:09]} 31. Kh3 {[%emt 0:00:12]} h6 {[%emt 0:00:54]} 32. Qc6 {[%emt 0:03:04]} Qe2 {[%emt 0:01:48]} ({Black should play} 32... Kg7) 33. Kg2 $16 {[%emt 0:00:08]} (33. Qxh6 Qf1+ 34. Kg4 Qe2+ 35. Kh3 (35. Kxg5 $2 Qe7+ 36. Kg4 Qxc5 $19) (35. f3 $2 Re4+ 36. Kxg5 Qe3+ 37. f4 Qxc5+ 38. Kh4 Rb4 $19) 35... Qf1+ 36. Kg4 Qe2+ 37. Kh3 $11 (37. Kxg5 $2 Qe7+ 38. Kg4 Qxc5 $19) (37. f3 $2 Re4+ 38. Kxg5 Qe3+ 39. f4 Qxc5+ 40. Kh4 Rb4 $19)) 33... Re6 {[%emt 0:00:33]} 34. Qf3 {[%emt 0:01:05]} Qxb2 {[%emt 0:00:08]} 35. Rc8+ {[%emt 0:00:23]} Kg7 {[%emt 0:00:04]} 36. Qc3+ {[%emt 0:00:07]} (36. h3 {is more complex.} Rd6 37. Qe3 Qd4 38. Qe8) 36... Qxc3 {[%emt 0:00:05]} 37. Rxc3 {[%emt 0:00:03]} Re2 {[%emt 0:00:06]} 38. g4 {[%emt 0:00:41]} (38. Rc6 $16) 38... Rb2 $14 {[%emt 0:00:16]} 39. Kf1 {[%emt 0:02:52]} Rb1+ {[%emt 0:00:19]} 40. Ke2 {[%emt 0:00:47]} Rb2+ {[%emt 0:00:05]} 41. Ke3 {[%emt 0:00:38]} Kh7 {[%emt 0:00:14]} 42. h3 {[%emt 0:00:12]} Kg7 {[%emt 0:00:59]} (42... h5 $14) 43. Kf3 {[%emt 0:00:34]} (43. f4 $16) 43... Kh7 {[%emt 0:00:14]} 44. Ke4 {[%emt 0:00:53]} Re2+ {[%emt 0:02:19]} (44... Kg6 $142) 45. Re3 $1 $16 {[%emt 0:00:05]} Rxf2 {[%emt 0:00:02] [#]} (45... Rd2 $16 {is a better defense.}) 46. Rf3 $1 $18 {[%emt 0:00:04]} Re2+ {[%emt 0:00:46]} 47. Kd3 {[%emt 0:00:23]} Re7 $2 {[%emt 0:00:05]} (47... Re8 {is tougher.} 48. b4 (48. Rxf7+ Kg6 $18) 48... Kg7) 48. b4 $18 {[%emt 0:00:02]} Kg6 {[%emt 0:00:22]} (48... h5 $142 49. b5 (49. gxh5 Kh6 $11) 49... hxg4 50. hxg4 Kg6) 49. b5 $18 {[%emt 0:00:14]} h5 $2 {[%emt 0:00:56] [#]} (49... Rb7 {was worth a try.}) 50. Kd4 $1 $18 {[%emt 0:01:50]} hxg4 {[%emt 0:00:06]} (50... Rb7 $142 51. Rf5 hxg4 52. hxg4 Rb8) 51. hxg4 $18 {[%emt 0:00:01]} Rd7+ {[%emt 0:00:57]} 52. Kc5 {[%emt 0:00:18]} Rc7+ {[%emt 0:00:21]} 53. Kb4 {[%emt 0:00:45]} Rb7 {[%emt 0:00:14]} 54. Rf5 {[%emt 0:00:49]} Re7 {[%emt 0:01:08]} 55. b6 {[%emt 0:00:44]} Re4+ {[%emt 0:01:13]} 56. Kc3 {[%emt 0:00:05]} Re3+ {[%emt 0:00:35]} 57. Kd4 {[%emt 0:01:14]} Rb3 {[%emt 0:00:22]} 58. Kc5 {[%emt 0:00:04]} Rc3+ {[%emt 0:00:31]} 59. Kd6 {[%emt 0:00:30]} Rc4 60. b7 {[%emt 0:00:10]} Rxg4 {[%emt 0:01:17]} 61. Rb5 {[%emt 0:00:11]} (61. b8=R $2 {too greedy.} Kxf5 62. Rb5+ Kg6 $19) 61... Rd4+ {[%emt 0:00:19]} 62. Kc7 {[%emt 0:00:06]} Rc4+ {[%emt 0:00:04]} 63. Kb6 {[%emt 0:00:07]} 1-0

[Event "10th Iberoamericano-ch 2024"]
[Site "Linares"]
[Date "2024.09.26"]
[Round "3.12"]
[White "Gines Esteo, Pedro Antonio"]
[Black "Romero Calduch, Sergio"]
[Result "1-0"]
[ECO "A07"]
[WhiteElo "2477"]
[BlackElo "2276"]
[Annotator "TA"]
[PlyCount "58"]
[EventDate "2024.09.25"]
[EventType "swiss"]
[EventCountry "ESP"]
[SourceTitle "playchess.com"]
[Source "ChessBase"]
[SourceQuality "1"]
[TimeControl "5400+30"]

{[%evp 9,58,2,9,-10,16,8,33,24,6,27,23,-29,-37,-61,-24,-29,-33,-28,-2,-27,-34,-24,-33,-33,0,-7,0,0,25,17,22,-10,53,28,28,27,72,63,85,16,27,26,93,100,233,221,218,225,217,221,765]} 1. Nf3 {[%emt 0:03:57]} d5 {[%emt 0:00:32]} 2. g3 {[%emt 0:00:42]} g6 {[%emt 0:00:37]} 3. Bg2 {[%emt 0:00:29]} Bg7 {[%emt 0:00:10]} 4. c4 {[%emt 0:02:27]} c6 {[%emt 0:01:54]} 5. Qa4 {[%emt 0:01:51]} d4 {[%emt 0:18:52]} 6. d3 {[%emt 0:01:41]} Nf6 {[%emt 0:01:29]} 7. b4 {[%emt 0:01:29]} Nfd7 {[%emt 0:08:31]} 8. O-O {[%emt 0:03:34] White is slightly better.} O-O {[%emt 0:00:06]} 9. Nbd2 {[%emt 0:08:07]} a5 {[%emt 0:04:37]} 10. bxa5 {[%emt 0:10:48]} (10. b5 $142) 10... Rxa5 $11 {[%emt 0:13:39]} 11. Qc2 {[%emt 0:00:14]} Ra8 {[%emt 0:00:47]} 12. Nb3 {[%emt 0:02:00]} e5 {[%emt 0:01:42]} 13. a4 {[%emt 0:04:56]} Re8 {[%emt 0:04:55]} 14. a5 {[%emt 0:08:53]} Na6 {[%emt 0:05:35]} 15. Ba3 {[%emt 0:05:11]} c5 {[%emt 0:05:31]} 16. Rae1 {[%emt 0:04:37]} Qc7 {[%emt 0:05:33]} 17. e3 {[%emt 0:00:34]} dxe3 {[%emt 0:02:57]} 18. Rxe3 {[%emt 0:00:00][%cal Od3d4]} Ndb8 {[%emt 0:00:00]} 19. Ng5 {[%emt 0:09:57]} Nc6 {[%emt 0:10:31]} 20. Ne4 {[%emt 0:00:18]} Nd4 {[%emt 0:08:47]} (20... Nxa5 $11 21. Rb1 Bf5) 21. Nxd4 $14 {[%emt 0:19:54]} cxd4 {[%emt 0:00:08]} 22. Ree1 {[%emt 0:00:02]} Qxa5 {[%emt 0:00:24]} 23. Ra1 {[%emt 0:05:14] Nd6 is the strong threat.} Qc7 {[%emt 0:01:17]} 24. Rab1 {[%emt 0:01:49]} ({White should play} 24. Rfb1 $16) 24... Rd8 $11 {[%emt 0:00:34] Dodges Nd6} 25. Rb5 {[%emt 0:00:35][%mdl 1024] White has compensation.} Kh8 {[%emt 0:02:57]} (25... f5 $11 {remains equal.} 26. Nd2 Kh8) 26. Rfb1 $16 {[%emt 0:00:43] White is more active.} Qd7 {[%emt 0:00:44] A mistake that costs the game.} (26... Bf8 $16 {is a better defense.} 27. Bxf8 Rxf8) 27. Rd5 {[%emt 0:01:22] White is clearly better.} Qc7 {[%emt 0:00:38] [#] aiming for ...Rxd5.} 28. Nd6 {[%emt 0:01:38][%cal Od6f7] Black must now prevent Nxf7+!} Kg8 {[%emt 0:00:31]} 29. Nxc8 {[%emt 0:01:19]} Raxc8 $2 {Weighted Error Value: White=0.13 (very precise) /Black=0.26 (precise) .  Mistake:       	White=2     	Black=4      Inaccurate:     	White=1     	Black=5      OK:         	White=9     	Black=8      Best:        	White=1     	---} (29... Qxc8 30. Rxd8+ Qxd8 31. Bxb7 (31. Rxb7 Bf8 $16) 31... Qa5 32. Bxa8 Qxa3) 1-0

[Event "10th Iberoamericano-ch 2024"]
[Site "Linares"]
[Date "2024.09.26"]
[Round "3.13"]
[White "Domingo Nunez, Alejandro"]
[Black "Fernandez Guillen, Ernesto J."]
[Result "0-1"]
[ECO "A05"]
[WhiteElo "2328"]
[BlackElo "2463"]
[Annotator "TA"]
[PlyCount "93"]
[EventDate "2024.09.25"]
[EventType "swiss"]
[EventCountry "ESP"]
[SourceTitle "playchess.com"]
[Source "ChessBase"]
[SourceQuality "1"]
[TimeControl "5400+30"]

{[%evp 22,93,45,26,22,9,9,6,6,0,0,0,0,0,0,0,0,0,4,0,0,-14,4,6,0,0,0,0,0,0,0,0,0,-55,-57,-111,-103,-131,-100,-251,-236,-228,-229,-272,-186,-279,-274,-352,-199,-210,-183,-175,-169,-380,-180,-412,-412,-432,-432,-429,-421,-431,-412,-493,-492,-547,-550,-625,-619,-706,-602,-587,-577,-567]} 1. Nf3 {[%emt 0:00:20]} Nf6 {[%emt 0:06:18]} 2. g3 {[%emt 0:00:37]} d5 {[%emt 0:00:11]} 3. Bg2 {[%emt 0:00:52]} c5 {[%emt 0:08:08]} 4. O-O {[%emt 0:00:10]} e6 {[%emt 0:02:55]} 5. d4 {[%emt 0:04:56]} cxd4 {[%emt 0:12:50]} 6. Nxd4 {[%emt 0:01:11]} Be7 {[%emt 0:00:08]} 7. c4 {[%emt 0:04:07]} O-O {[%emt 0:00:13]} 8. cxd5 {[%emt 0:00:13]} Nxd5 {[%emt 0:00:38]} 9. e4 {[%emt 0:00:56]} Nb4 {[%emt 0:01:13]} 10. Nc3 {[%emt 0:04:59][%cal Bb1c3,Bc3a4,Ba4c5][%mdl 32]} N8c6 {[%emt 0:01:42]} 11. Nxc6 {[%emt 0:19:19]} Nxc6 {[%emt 0:28:16]} 12. Be3 {[%emt 0:08:32]} Qa5 {[%emt 0:12:16]} 13. Qa4 {[%emt 0:28:45]} Qxa4 {[%emt 0:09:11]} 14. Nxa4 {[%emt 0:00:03]} Ne5 {[%emt 0:06:03] The position is equal.} 15. Bd4 {[%emt 0:07:17]} Nc6 {[%emt 0:01:49]} 16. Be3 {[%emt 0:00:05]} Ne5 {[%emt 0:04:14]} 17. Rac1 {[%emt 0:12:03]} Bd7 {[%emt 0:00:37][%cal Bc8d7,Bd7b5,Bb5e2,Be2f3][%mdl 32]} 18. Bc5 {[%emt 0:02:54]} Bxc5 {[%emt 0:01:05]} 19. Nxc5 {[%emt 0:00:01]} Bb5 {[%emt 0:00:43] [#] aiming for ...b6.} 20. Rfd1 {[%emt 0:00:24]} b6 {[%emt 0:00:30]} 21. a4 {[%emt 0:02:39]} Be2 {[%emt 0:01:23]} 22. Rd2 {[%emt 0:00:17]} Nf3+ {[%emt 0:00:33]} 23. Bxf3 {[%emt 0:00:02]} Bxf3 {[%emt 0:00:04]} 24. Rc3 {[%emt 0:00:19]} Bh5 $36 {[%emt 0:00:55][%mdl 2048] Black has the initiative.} 25. Nd7 {[%emt 0:00:44]} Rfd8 {[%emt 0:00:23]} 26. f3 {[%emt 0:01:03]} f6 {[%emt 0:00:20]} 27. Rcd3 {[%emt 0:00:19]} (27. g4 $11 Be8 28. Rc7) 27... Rdc8 $1 $15 {[%emt 0:00:03]} 28. Kf2 {[%emt 0:00:49]} (28. g4 $15 Be8 29. e5) 28... Be8 {[%emt 0:00:17]} 29. Rd6 {[%emt 0:00:26]} Kf7 {[%emt 0:00:48] And now ...Rc7 would win.} 30. e5 $2 {[%emt 0:00:11] White does not recover from this.} (30. f4 $17 {was necessary.}) 30... Rc7 $19 {[%emt 0:00:58]} 31. exf6 {[%emt 0:00:31]} gxf6 {[%emt 0:00:02]} 32. g4 {[%emt 0:00:42]} h6 {[%emt 0:00:38]} (32... Rd8 $2 33. Ne5+ fxe5 34. Rxd8 $18) 33. h4 {[%emt 0:00:12] [#]} (33. b3 {might work better.}) 33... Ke7 $1 {[%emt 0:00:24]} (33... Rd8 $2 34. Ne5+ fxe5 35. Rxd8 $18) 34. g5 {[%emt 0:00:42]} hxg5 {[%emt 0:00:06]} (34... Rxd7 35. gxf6+ Kxf6 (35... Kd8 36. f7 $11) 36. Rxd7 Bxd7 37. Rxd7 $11) (34... Bxd7 $142 35. gxf6+ Ke8) 35. hxg5 {[%emt 0:00:04]} Bxd7 {[%emt 0:01:05]} (35... Rxd7 36. gxf6+ Kd8 37. f7 (37. Rxd7+ $2 Bxd7 38. Ke3 Kc7 $19) 37... Rxd6 38. fxe8=Q+ Kxe8 39. Rxd6 $11) 36. gxf6+ {[%emt 0:00:02]} Ke8 $1 {[%emt 0:00:01]} 37. Ke3 $2 {[%emt 0:00:00]} (37. b3 {was called for.}) 37... Rd8 {[%emt 0:00:57]} (37... Bxa4 $142 38. Rh2 Rac8 39. Rxe6+ Kf7) 38. Kf4 $2 {[%emt 0:01:20]} (38. f4) 38... Kf7 {[%emt 0:00:36]} 39. Ke5 {[%emt 0:00:03]} Rc5+ {[%emt 0:00:14]} 40. Kf4 {[%emt 0:00:12]} Rf5+ {[%emt 0:00:19]} 41. Ke3 {[%emt 0:00:20]} Ke8 {[%emt 0:00:53]} 42. Rh2 {[%emt 0:00:22] Rh8+ would now be deadly.} Rxf6 {[%emt 0:00:08] Black is clearly winning.} (42... Bxa4 $2 {perishes.} 43. Rh8+ (43. Rxe6+ $2 {loses.} Kf7 $19) 43... Kf7 44. Rdxd8 (44. Rhxd8 Re5+ 45. Kf4 Rf5+ 46. Ke3 Re5+ 47. Kf2 Kxf6 $16) 44... Kxf6 45. Rdf8+ Ke5 46. Rxf5+ exf5 47. Rf8 $18) 43. Rh7 {[%emt 0:00:09]} Rf7 {[%emt 0:00:08]} ({Stronger than} 43... Bxa4 44. Rh8+ Ke7 45. Rdxd8 $16) 44. Rxf7 {[%emt 0:00:38]} Kxf7 {[%emt 0:00:02]} 45. a5 {[%emt 0:00:04]} bxa5 {[%emt 0:00:22]} 46. Ra6 {[%emt 0:00:03]} Ra8 {[%emt 0:00:38]} 47. Kd4 {[%emt 0:01:04] Weighted Error Value: White=0.45/Black=0.22 (precise) .  Mistake:       	White=6     	Black=2      Inaccurate:     	---       	Black=1      OK:         	White=5     	Black=11     Best:        	White=2     	Black=5      Strong:       	---       	Black=3} 0-1